bitfinex-derivatives/quotes_ETHF0:USTF0_20250224
["timestamp","ask_amount","ask_price","bid_price","bid_amount"]
[1740439919346,9.1111,2529.4,2528.3,3.2078]
[1740439919546,0.79101,2528.9,2528.3,3.2078]
[1740439919742,3.2078,2529.1,2528.3,3.2078]
[1740439919945,0.79106,2528.7,2528.6,0.00593566]
[1740439923645,0.79128,2528.0,2527.9,3.2078]
[1740439923845,10.27067,2528.5,2527.4,4.5059]
[1740439924046,5.9292,2528.4,2527.3,3.2078]
[1740439924340,5.1859,2528.2,2527.5,0.79142]
[1740439924545,5.1859,2528.2,2527.4,3.2078]
[1740439924849,5.1859,2528.2,2527.5,0.00593566]
[1740439925047,0.79138,2527.7,2527.5,3.21373566]
[1740439925340,0.7914,2527.6,2527.5,0.00593566]
[1740439926039,0.7914,2527.6,2526.9,3.99941]
[1740439926040,0.79157,2527.1,2526.9,3.2078]
[1740439926235,1.97857,2527.6,2526.9,3.2078]
[1740439926445,0.7915,2527.3,2527.0,0.79158]
[1740439926645,0.79148,2527.4,2526.9,3.2078]
[1740439926839,5.08993566,2527.8,2527.2,3.2078]
[1740439927240,0.79143,2527.6,2527.3,0.79149]
[1740439927448,0.79143,2527.6,2527.5,3.2078]
[1740439928549,5.08993566,2527.8,2527.5,3.2078]
[1740439928751,0.7914,2527.6,2527.5,3.2078]
[1740439929053,0.79138,2527.7,2527.5,3.99922]
[1740439929652,0.79728566,2527.8,2527.6,41.59139]
[1740439929842,0.00593566,2527.8,2527.6,40.8]
[1740439930048,0.79137,2527.7,2527.6,40.8]
[1740439931146,0.79153,2527.2,2527.1,3.2078]
[1740439931545,0.79153,2527.2,2527.1,44.0078]
[1740439932154,1.9785,2527.7,2527.1,44.0078]
[1740439932348,0.79153,2527.2,2527.1,44.0078]
[1740439932550,0.79153,2527.2,2527.1,3.2078]
[1740439932946,0.79159,2527.0,2526.9,0.00593566]
[1740439933147,3.99939,2527.0,2526.9,0.00593566]
[1740439933349,9.99939,2527.0,2526.9,0.00593566]
[1740439933651,0.79172,2526.6,2526.5,40.8]
[1740439933847,3.2078,2527.4,2526.5,40.8]
[1740439934149,0.79162,2526.9,2526.8,3.2078]
[1740439935250,1.97878,2527.3,2526.8,3.2078]
[1740439935454,10.7507,2527.5,2526.8,3.2078]
[1740439935753,0.79153,2527.2,2527.1,3.2078]
[1740439936949,10.7507,2527.5,2526.7,3.2078]
[1740439937255,1.979,2527.0,2526.6,0.00593566]
[1740439937455,0.79168,2526.7,2526.6,0.00593566]
[1740439938351,0.79197,2525.8,2525.7,0.37969076]
[1740439938555,0.79215,2525.2,2525.1,3.99999]
[1740439938747,0.79215,2525.2,2525.1,44.37519009]
[1740439939147,0.79215,2525.2,2525.1,41.16739009]
[1740439939350,0.79215,2525.2,2525.1,40.8]
[1740439939549,0.79237,2524.5,2524.4,0.36568319]
[1740439939749,0.79241,2524.4,2524.3,3.2078]
[1740439939950,0.79241,2524.4,2524.3,44.0078]
[1740439940549,7.05567,2524.9,2524.3,44.0078]
[1740439940749,0.79239,2524.5,2524.3,44.0078]
[1740439941057,0.79239,2524.5,2524.3,44.80024]
[1740439941353,0.79241,2524.4,2524.3,44.0078]
[1740439941944,7.05567,2524.9,2524.3,44.0078]
[1740439942146,0.79241,2524.4,2524.3,44.0078]
[1740439943049,0.79241,2524.4,2524.3,3.2078]
[1740439943855,0.79244,2524.3,2524.2,0.00593566]
[1740439945954,6.79244,2524.3,2524.2,0.00593566]
[1740439946160,0.79244,2524.3,2524.2,0.00593566]
[1740439947660,0.79244,2524.3,2524.2,40.80593566]
[1740439950963,6.0,2524.3,2523.7,3.2078]
[1740439951265,0.79259,2523.8,2523.7,3.2078]
[1740439951665,0.79259,2523.9,2523.7,3.2078]
[1740439951969,1.9811,2524.3,2523.8,41.59257]
[1740439952269,0.79256,2524.0,2523.8,41.59257]
[1740439952468,0.79256,2524.0,2523.8,40.8]
[1740439952760,0.79255,2524.0,2523.8,40.8]
[1740439952965,0.79256,2523.9,2523.8,40.8]
[1740439953358,0.79253,2524.0,2523.8,41.59259]
[1740439953562,0.00593566,2524.1,2523.8,40.8]
[1740439953868,0.79256,2523.9,2523.8,40.8]
[1740439955170,0.00593566,2524.1,2523.8,40.8]
[1740439961178,0.00593566,2524.1,2524.0,3.2078]
[1740439961565,0.00593566,2524.1,2523.8,44.0078]
[1740439965982,3.2078,2525.0,2523.8,44.0078]
[1740439966178,7.6922,2525.4,2524.7,3.2078]
[1740439966373,5.567,2525.7,2525.0,3.2078]
[1740439966580,4.5395,2526.0,2525.3,3.2078]
[1740439966774,5.18756,2526.1,2525.6,0.79202]
[1740439966982,0.79197,2525.8,2525.7,0.79199]
[1740439967176,0.00593566,2526.1,2525.6,3.21373566]
[1740439967480,0.792,2525.7,2525.6,3.21373566]
[1740439967674,1.98563566,2526.1,2525.6,0.00593566]
[1740439967675,0.00593566,2526.1,2525.6,0.00593566]
[1740439967878,1.97977,2526.0,2525.6,0.00593566]
[1740439968080,0.792,2525.7,2525.6,0.00593566]
[1740439968586,6.792,2525.7,2525.6,0.00593566]
[1740439969382,0.792,2525.7,2525.6,0.00593566]
[1740439969888,0.79234,2524.7,2524.5,4.00016]
[1740439970188,0.79234,2524.6,2524.5,3.2078]
[1740439970581,0.79246,2524.3,2524.1,4.00029]
[1740439970785,0.79247,2524.2,2524.0,0.79252]
[1740439970986,0.79249,2524.2,2524.1,3.2078]
[1740439971183,0.79246,2524.3,2524.1,3.2078]
[1740439971486,0.79247,2524.2,2524.1,3.2078]
[1740439972492,0.79253,2524.0,2523.9,0.00399749]
[1740439974186,6.79253,2524.0,2523.9,0.00399749]
[1740439974789,6.79253,2524.0,2523.9,7.49e-06]
[1740439975184,11.26723,2524.0,2523.9,7.49e-06]
[1740439975387,11.26723,2524.0,2522.5,3.58007061]
[1740439975388,0.79296,2522.7,2522.5,3.58007061]
[1740439975591,0.79296,2522.7,2522.6,40.8]
[1740439979997,9.2078,2522.7,2521.0,3.2078]
[1740439980300,3.2078,2521.1,2520.8,10.554]
[1740439980491,0.79351,2520.9,2520.8,10.554]
[1740439980790,0.79351,2520.9,2520.8,4.8058]
[1740439980996,0.79351,2520.9,2520.8,44.764]
[1740439982195,0.79351,2520.9,2520.8,43.82544]
[1740439984685,0.00594754,2521.2,2520.8,43.82544]
[1740439984986,0.00594754,2521.2,2521.1,6.23324]
[1740439985188,0.79935754,2521.2,2521.1,6.23324]
[1740439985600,0.79935754,2521.2,2521.1,43.82544]
[1740439989896,0.00594754,2521.2,2521.1,43.82544]
[1740439990100,0.00594754,2521.2,2521.1,44.61888]
[1740439990595,3.2078,2522.1,2521.3,1.98343]
[1740439990800,5.051,2522.4,2522.0,3.02544]
[1740439991001,0.79306,2522.3,2522.2,3.02544]
[1740439991190,0.79306,2522.3,2522.2,40.8]
[1740439991399,0.79306,2522.3,2522.2,43.82544]
[1740439991799,0.79304,2522.4,2522.2,44.61852]
[1740439992008,3.21374754,2522.5,2522.2,40.8]
[1740439992301,0.79894754,2522.5,2522.4,3.02544]
[1740439992799,3.21374754,2522.5,2522.0,0.00594754]
[1740439993004,0.79313,2522.1,2522.0,7.54e-06]
[1740439993207,5.05,2522.1,2521.0,7.9384]
[1740439993501,5.05,2522.1,2520.4,5.5092]
[1740439993502,0.79341,2521.2,2521.1,3.02544]
[1740439993900,3.2078,2521.3,2520.6,40.8]
[1740439994103,0.79357,2520.7,2520.6,40.8]
[1740439994306,3.2078,2521.3,2520.8,3.02544]
[1740439994505,0.00594754,2520.9,2520.8,3.02544]
[1740439995201,0.00594754,2520.9,2520.8,3.81898]
[1740439995999,0.00594754,2520.9,2520.8,3.02544]
[1740439996197,0.00594754,2520.9,2520.8,3.81898]
[1740439996999,5.048,2521.4,2521.3,0.79338]
[1740439997500,5.048,2521.4,2521.1,3.2078]
[1740439997501,5.048,2521.4,2521.2,0.7934]
[1740439997701,5.048,2521.4,2521.2,3.02544]
[1740439997902,5.84136,2521.4,2521.2,3.02544]
[1740439998106,5.84137,2521.4,2521.2,3.02544]
[1740439998296,5.048,2521.4,2521.2,3.02544]
[1740439998606,5.048,2521.4,2521.1,3.2078]
[1740439998607,5.048,2521.4,2521.3,3.81882]
[1740439998805,0.00594754,2521.6,2521.5,0.79332]
[1740439999004,0.00594754,2521.6,2521.5,3.81876]
[1740439999703,0.00594754,2521.6,2521.5,7.02656]
[1740440000209,3.21374754,2521.6,2521.0,0.00594754]
[1740440000410,4.00702754,2521.6,2521.5,40.8]
[1740440000603,3.21374754,2521.6,2521.2,3.02544]
[1740440000908,3.21374754,2521.6,2521.0,0.00594754]
[1740440000909,0.79344,2521.1,2521.0,0.00594754]
[1740440001208,3.2078,2521.3,2521.0,43.83138754]
[1740440001510,0.79344,2521.1,2521.0,0.00594754]
[1740440003616,6.79344,2521.1,2520.4,40.8]
[1740440003804,0.79363,2520.5,2520.4,40.8]
[1740440004001,0.7937,2520.3,2520.1,0.79373]
[1740440004207,0.7937,2520.3,2520.2,3.02544]
[1740440004510,0.79365,2520.5,2520.2,43.82544]
[1740440004704,0.79365,2520.5,2520.3,3.02544]
[1740440004908,8.2518,2520.7,2520.2,40.8]
[1740440005111,3.2078,2520.4,2519.9,12.26574674]
[1740440005310,3.2078,2520.4,2520.0,3.81922]
[1740440005512,3.2078,2520.4,2520.1,40.8]
[1740440006006,0.7937,2520.3,2520.1,40.8]
[1740440006209,0.79379,2520.0,2519.9,12.26574674]
[1740440006402,0.79382,2519.9,2519.8,15.33218343]
[1740440006608,14.2498,2520.0,2519.5,18.39862012]
[1740440006911,4.00171,2519.6,2519.5,18.39862012]
[1740440007311,10.00171,2519.6,2519.5,18.39862012]
[1740440009814,10.00171,2519.6,2519.5,15.84850103]
[1740440010213,10.00171,2519.6,2519.5,14.88185103]
[1740440010414,10.36751065,2519.6,2519.5,14.88105103]
[1740440011311,10.36751065,2519.6,2519.5,14.07305103]
[1740440011523,10.36751065,2519.6,2519.5,9.05004103]
[1740440011820,10.36751065,2519.6,2519.5,5.010444]
[1740440012718,10.36751065,2519.6,2519.5,2.938871]
[1740440012919,10.36751065,2519.6,2519.5,1.93901234]
[1740440013309,10.36751065,2519.6,2519.5,1.11121234]
[1740440013510,0.79398,2519.4,2519.3,17.41028962]
[1740440013821,6.79398,2519.4,2519.3,17.41028962]
[1740440014014,6.79398,2519.4,2519.3,16.48064241]
[1740440014214,6.79398,2519.4,2519.3,8.29865939]
[1740440014416,0.79401,2519.3,2519.2,13.23598731]
[1740440014616,0.79407,2519.1,2519.0,22.44399163]
[1740440014815,0.86035333,2519.1,2519.0,8.43621827]
[1740440015021,0.7941,2519.0,2518.9,16.42909977]
[1740440015223,4.0019,2519.0,2518.9,13.41515513]
[1740440015423,0.79432,2518.3,2518.2,33.73080355]
[1740440015624,9.04112,2518.3,2518.2,33.73080355]
[1740440016722,15.04112,2518.3,2518.2,33.03931859]
[1740440017024,15.04112,2518.3,2518.2,25.69521859]
[1740440017526,15.04112,2518.3,2518.2,22.93081138]
[1740440017822,15.04112,2518.3,2518.2,21.10405427]
[1740440018027,15.04112,2518.3,2518.2,17.26473427]
[1740440018221,15.04112,2518.3,2518.2,3.44508273]
[1740440018427,0.79448,2517.8,2517.4,32.82604024]
[1740440018621,3.97317,2517.4,2516.7,37.3310871]
[1740440018821,4.0026,2516.8,2516.7,21.12646103]
[1740440019128,1.71892401,2516.5,2515.0,484.8576701]
[1740440019330,4.00282,2516.1,2516.0,38.29799789]
[1740440019627,4.00282,2516.1,2516.0,37.18459789]
[1740440019923,10.00282,2516.1,2516.0,33.14277189]
[1740440020219,10.50282,2516.1,2516.0,24.62746522]
[1740440020424,10.50282,2516.1,2516.0,20.26717522]
[1740440020724,15.03982,2516.1,2516.0,14.12560922]
[1740440020928,15.03982,2516.1,2516.0,10.82090922]
[1740440021122,15.03982,2516.1,2515.0,484.8576701]
[1740440021123,0.79527,2515.3,2515.0,484.8576701]
[1740440021325,9.04007,2515.3,2515.0,484.8576701]
[1740440021518,15.04007,2515.3,2515.0,484.8576701]
[1740440021831,9.04107,2515.3,2515.2,42.20984929]
[1740440022019,9.04107,2515.3,2515.2,39.22804929]
[1740440022219,9.04107,2515.3,2515.2,38.42064929]
[1740440022823,15.04107,2515.3,2515.2,36.15443411]
[1740440023022,0.79534,2515.1,2515.0,227.08990421]
[1740440023329,0.79534,2515.1,2515.0,217.40824625]
[1740440023523,6.79534,2515.1,2515.0,207.90548762]
[1740440023824,0.79534,2515.1,2515.0,206.87733161]
[1740440024029,5.037,2515.1,2515.0,206.87733161]
[1740440024617,75.27557673,2515.3,2515.0,247.67733161]
[1740440024817,22.04096007,2515.5,2515.0,247.67733161]
[1740440024818,0.00596007,2515.5,2515.2,24.86216221]
[1740440025017,1.25137906,2516.2,2515.0,247.67733161]
[1740440025018,4.93976007,2515.8,2515.4,12.6583349]
[1740440025222,4.93976007,2515.8,2515.7,8.30591355]
[1740440025425,3.2078,2516.2,2515.7,49.10591355]
[1740440025625,5.039,2516.1,2515.9,8.30591355]
[1740440026022,5.039,2516.1,2515.0,206.87733161]
[1740440026222,4.00314,2515.1,2515.0,183.27733161]
[1740440026531,0.79549,2514.6,2514.5,48.26597698]
[1740440026826,4.00329,2514.6,2514.5,34.81253118]
[1740440027029,10.00329,2514.6,2514.5,29.20071146]
[1740440027221,10.00329,2514.6,2514.5,10.80023146]
[1740440027427,0.79581,2513.6,2513.5,52.12942367]
[1740440027730,9.04261,2513.6,2513.5,52.12942367]
[1740440027925,9.04261,2513.6,2513.5,50.2471087]
[1740440028130,9.04261,2513.6,2513.5,47.1975287]
[1740440028330,9.04261,2513.6,2513.5,45.5465887]
[1740440028331,15.04261,2513.6,2513.5,45.5465887]
[1740440028532,15.04261,2513.6,2513.5,43.4916087]
[1740440028733,15.04261,2513.6,2513.5,43.4902087]
[1740440028936,0.79619,2512.4,2512.3,54.08856036]
[1740440029132,9.04199,2512.4,2512.3,52.85376036]
[1740440029428,15.04199,2512.4,2512.3,49.46347036]
[1740440029832,15.04199,2512.4,2512.3,49.09076112]
[1740440030033,15.04199,2512.4,2512.3,39.88151014]
[1740440030228,0.79663,2511.0,2510.9,58.26229704]
[1740440030428,5.83363,2511.0,2510.9,58.26229704]
[1740440030733,11.83363,2511.0,2510.9,56.56443704]
[1740440030934,11.83363,2511.0,2510.9,53.18062979]
[1740440031131,11.83363,2511.0,2510.9,40.69083259]
[1740440031331,11.83363,2511.0,2509.4,64.53653373]
[1740440031332,0.79679,2510.5,2509.4,64.53653373]
[1740440031629,0.00597217,2511.2,2510.8,44.11991355]
[1740440031833,5.039,2512.1,2511.1,44.11991355]
[1740440032036,87.11820999,2512.4,2512.0,3.2078]
[1740440032238,5.039,2513.2,2512.7,0.79607]
[1740440032537,5.91438715,2513.6,2512.7,4.00387]
[1740440032733,3.2078,2513.5,2512.5,3.2078]
[1740440032933,5.11856715,2513.6,2512.1,4.4381]
[1740440032934,3.2078,2513.0,2512.2,3.2078]
[1740440033137,3.2078,2512.7,2512.6,0.00597217]
[1740440033337,3.2078,2512.7,2511.3,3.2078]
[1740440033539,3.2078,2512.0,2511.4,3.2078]
[1740440033840,3.2078,2511.6,2510.9,44.0078]
[1740440034027,3.2078,2511.6,2510.9,3.2078]
[1740440034028,3.2078,2511.4,2510.9,3.2078]
[1740440034228,5.039,2511.4,2511.0,3.2078]
[1740440034429,5.039,2511.4,2511.1,40.8]
[1740440034633,5.04497217,2511.4,2510.9,4.00446]
[1740440034834,3.2078,2511.2,2510.5,3.2078]
[1740440035036,3.2078,2510.6,2510.1,5.1952]
[1740440035338,3.2078,2510.4,2510.1,5.1952]
[1740440035636,5.038,2510.5,2510.1,5.1944]
[1740440036026,3.2078,2510.3,2510.1,5.1944]
[1740440036226,0.79689,2510.2,2510.1,5.1944]
[1740440036429,9.2078,2510.3,2509.4,64.53653373]
[1740440036633,151.95646629,2510.3,2509.4,61.32873373]
[1740440037138,0.00597217,2510.1,2509.6,3.2078]
[1740440037329,0.00597217,2510.1,2510.0,0.79695]
[1740440037529,3.21377217,2510.1,2509.5,3.2078]
[1740440037735,4.01070217,2510.1,2509.5,3.2078]
[1740440037944,3.21377217,2510.1,2509.5,3.2078]
[1740440038239,4.0048,2509.9,2509.4,61.32873373]
[1740440038427,4.00491,2509.5,2509.4,61.32873373]
[1740440038631,4.00491,2509.5,2509.4,52.97673373]
[1740440038832,10.00491,2509.5,2509.4,52.97673373]
[1740440039034,3.2078,2509.5,2509.4,52.97673373]
[1740440039243,8.2468,2509.5,2509.4,52.97673373]
[1740440040037,15.04391,2509.5,2509.4,52.97673373]
[1740440040241,14.2468,2509.5,2509.4,52.97673373]
[1740440040444,8.2468,2509.5,2509.4,52.97673373]
[1740440041439,9.04391,2509.5,2509.4,45.73796374]
[1740440041630,15.04391,2509.5,2509.4,45.73796374]
[1740440041837,15.04391,2509.5,2509.4,43.32586374]
[1740440042031,15.04391,2509.5,2509.4,39.34106374]
[1740440042241,15.04391,2509.5,2509.4,34.9396415]
[1740440042440,15.04391,2509.5,2509.4,29.71442018]
[1740440042637,3.2078,2509.5,2509.4,29.71442018]
[1740440042936,8.2498,2509.5,2509.4,29.71442018]
[1740440043745,9.04691,2509.5,2509.4,29.71442018]
[1740440044039,9.04691,2509.5,2509.4,28.74742018]
[1740440044239,15.04691,2509.5,2509.4,27.15792018]
[1740440044442,1.99333,2508.9,2508.1,5.5521]
[1740440044637,3.2078,2508.2,2508.1,5.5521]
[1740440044838,3.2078,2508.2,2508.1,2.9668331]
[1740440045144,4.00532,2508.2,2508.1,2.9668331]
[1740440045341,3.2078,2508.2,2508.1,2.9668331]
[1740440045839,3.2078,2508.2,2507.6,0.79771]
[1740440046041,3.2078,2507.9,2507.4,5.6198]
[1740440046338,3.2078,2507.6,2507.4,13.5894]
[1740440046536,3.2078,2507.9,2507.4,13.5894]
[1740440046739,0.00597217,2508.4,2508.0,1.71118469]
[1740440046948,0.00597217,2508.4,2508.3,13.68607469]
[1740440047136,3.2078,2509.2,2508.4,1.99366]
[1740440047337,3.2078,2510.0,2509.9,9.68078469]
[1740440047640,95.20113111,2510.3,2509.9,9.68078469]
[1740440047838,66.09552808,2510.1,2510.0,10.47773469]
[1740440048039,95.20113111,2510.3,2510.0,12.88858469]
[1740440048232,95.20710328,2510.3,2510.2,10.47767469]
[1740440048540,65.34918357,2510.3,2510.2,6.79689]
[1740440048838,8.2498,2512.6,2511.9,0.79635]
[1740440049038,7.1918,2512.6,2512.4,0.79618]
[1740440049235,3.984,2512.5,2511.8,3.2078]
[1740440049542,5.042,2513.2,2512.3,3.2078]
[1740440049543,3.984,2512.7,2512.3,3.2078]
[1740440049741,3.2078,2513.9,2512.5,3.2078]
[1740440049946,4.06356715,2513.6,2513.3,3.2078]
[1740440050239,8.2498,2514.2,2513.3,3.2078]
[1740440050240,8.2498,2514.2,2513.6,0.79579]
[1740440050433,3.2078,2514.5,2513.7,3.2078]
[1740440050632,8.2498,2514.5,2513.7,3.2078]
[1740440050938,3.2078,2514.2,2513.8,0.00597217]
[1740440051139,4.00343,2514.2,2513.8,0.00597217]
[1740440051445,3.2078,2514.2,2513.8,0.00597217]
[1740440052047,4.00344,2514.2,2513.8,0.00597217]
[1740440052245,3.2078,2514.2,2513.4,3.2078]
[1740440052450,4.00342,2514.2,2513.4,3.2078]
[1740440052743,3.2078,2514.2,2513.4,3.2078]
[1740440053045,3.2078,2513.6,2512.7,3.2078]
[1740440053338,3.2078,2512.8,2511.6,27.134]
[1740440053643,3.2078,2512.2,2511.6,3.2078]
[1740440053943,3.2078,2511.9,2511.1,27.128]
[1740440054138,3.2078,2511.6,2510.9,1.241]
[1740440054445,0.00597217,2512.5,2510.9,1.241]
[1740440054446,3.2078,2511.2,2510.9,1.241]
[1740440054745,3.2078,2511.2,2510.1,3.2078]
[1740440054943,3.2078,2510.7,2510.6,0.79676]
[1740440055142,1.9621,2510.7,2510.6,0.79676]
[1740440055334,1.9621,2510.7,2510.5,0.79678]
[1740440055838,1.9612,2510.7,2510.6,0.79676]
[1740440056452,1.9612,2510.7,2510.5,0.79678]
[1740440056639,1.9612,2510.7,2510.0,11.42435443]
[1740440056640,1.9612,2510.7,2510.4,0.79681]
[1740440057041,1.9612,2510.7,2510.0,6.38735443]
[1740440057349,3.2078,2510.2,2510.1,0.79692]
[1740440057945,30.45187073,2510.6,2510.1,6.0]
[1740440058139,30.45187073,2510.6,2510.1,1.9923]
[1740440058342,3.2078,2510.4,2510.3,0.79686]
[1740440058641,3.2078,2510.4,2509.3,0.79716]
[1740440058845,3.2078,2509.4,2508.7,22.09]
[1740440059048,3.2078,2509.0,2508.9,0.7973]
[1740440059348,3.2078,2509.0,2508.8,40.8]
[1740440059559,6.0,2509.0,2507.8,1.99411]
[1740440059744,4.00517,2508.7,2508.1,0.79755]
[1740440059943,3.2078,2509.0,2507.8,3.2078]
[1740440060144,3.2078,2509.1,2509.0,0.79727]
[1740440060448,2.41035,2509.4,2509.3,0.79717]
[1740440060648,3.2078,2509.7,2509.0,1.99318]
[1740440060949,12.10864654,2510.2,2510.1,0.79692]
[1740440061347,18.10864654,2510.2,2509.3,3.2078]
[1740440061548,3.2078,2509.9,2509.8,0.79701]
[1740440061750,3.2078,2509.9,2509.7,0.79703]
[1740440061951,10.0048,2509.9,2509.2,0.79718]
[1740440062252,3.2078,2509.4,2508.7,1.99334]
[1740440062448,3.2078,2509.4,2509.3,0.79717]
[1740440062856,30.45187073,2509.6,2509.0,3.2078]
[1740440063049,29.58727073,2509.6,2509.0,3.2078]
[1740440063249,29.58727073,2509.6,2509.5,0.79711]
[1740440063445,21.63107073,2509.6,2509.5,0.79711]
[1740440063648,21.63107073,2509.6,2509.5,6.79711]
[1740440063849,3.04540073,2509.6,2509.5,47.59711]
[1740440064047,12.10864654,2510.2,2510.1,0.79692]
[1740440064048,11.18408033,2510.2,2510.1,0.79692]
[1740440064347,11.18408033,2510.2,2510.1,4.00472]
[1740440064545,11.18408033,2510.2,2510.1,10.00472]
[1740440065145,30.62277106,2510.2,2509.9,0.00597217]
[1740440065353,4.00475,2510.0,2509.9,0.00597217]
[1740440065551,0.79721,2509.2,2508.8,3.2078]
[1740440065753,3.2078,2509.0,2508.3,5.83547]
[1740440066057,5.46909073,2509.2,2508.4,40.8]
[1740440066256,3.2078,2509.3,2508.5,3.2078]
[1740440066461,5.46909073,2509.2,2508.5,3.2078]
[1740440066650,0.00597217,2509.1,2508.5,3.2078]
[1740440066856,0.00597217,2509.1,2508.7,4.00515]
[1740440067059,0.00597217,2509.1,2508.7,0.79735]
[1740440067253,0.00597217,2509.1,2508.7,4.00515]
[1740440067457,0.00597217,2509.1,2508.5,3.2078]
[1740440067659,0.00597217,2509.1,2508.7,0.79735]
[1740440067958,0.00597217,2509.1,2508.5,3.2078]
[1740440067959,0.00597217,2509.1,2508.6,0.79739]
[1740440068159,3.2078,2509.0,2508.2,25.3078]
[1740440068361,3.2078,2508.7,2508.2,25.3078]
[1740440068562,3.2078,2508.7,2507.9,0.79761]
[1740440068563,3.2078,2508.4,2507.6,0.7977]
[1740440068861,8.67689073,2508.3,2507.3,5.037]
[1740440069058,8.67689073,2508.3,2507.7,40.8]
[1740440069251,3.2078,2507.9,2507.7,40.8]
[1740440069452,3.2078,2508.2,2507.7,40.8]
[1740440069757,13.43869073,2508.3,2507.2,67.4616071]
[1740440069758,16.64649073,2507.8,2507.2,67.4616071]
[1740440069954,5.46909073,2507.6,2507.2,67.4616071]
[1740440070364,3.2078,2507.5,2507.2,67.4616071]
[1740440070861,0.00597217,2507.8,2507.2,67.4616071]
[1740440071061,0.00597217,2507.8,2507.3,5.037]
[1740440071257,44.55728401,2508.3,2507.5,3.2078]
[1740440071453,41.34948401,2508.3,2508.2,0.79752]
[1740440072254,32.9151949,2508.6,2508.5,0.79743]
[1740440072665,32.9113949,2508.6,2508.5,6.79743]
[1740440073058,32.9081949,2508.6,2508.5,6.79743]
[1740440073256,32.90222273,2508.6,2508.5,0.79743]
[1740440073462,32.90222273,2508.6,2507.7,5.20197]
[1740440073658,5.46909073,2507.7,2507.3,0.00597217]
[1740440074168,13.43869073,2507.4,2507.3,0.00597217]
[1740440074570,3.2078,2507.6,2507.3,0.00597217]
[1740440074866,14.67689073,2507.6,2507.3,0.00597217]
[1740440075262,14.67689073,2507.6,2507.0,0.79789]
[1740440075472,3.2078,2507.3,2507.0,0.79789]
[1740440075770,3.2078,2507.3,2506.8,40.8]
[1740440075963,10.66880843,2507.4,2507.3,0.79781]
[1740440076473,10.66880843,2507.4,2507.0,3.2078]
[1740440076670,10.66880843,2507.4,2507.0,4.00569]
[1740440076968,10.66880843,2507.4,2507.1,0.79787]
[1740440077170,10.66880843,2507.4,2506.8,40.8]
[1740440077362,13.87660843,2507.4,2506.8,40.8]
[1740440077568,13.87660843,2507.4,2506.9,0.79791]
[1740440078170,13.87660843,2507.4,2507.0,0.79789]
[1740440078575,13.87660843,2507.4,2507.2,52.1722071]
[1740440079264,13.43869073,2507.3,2507.2,52.1722071]
[1740440079470,13.43869073,2507.3,2507.2,43.8202071]
[1740440079665,47.06580728,2507.3,2507.2,43.8202071]
[1740440080066,47.06580728,2507.3,2507.2,20.5690071]
[1740440080269,47.86361728,2507.3,2507.2,5.2777071]
[1740440080468,0.79786,2507.2,2506.3,41.59811]
[1740440080768,3.2078,2506.8,2506.3,40.8]
[1740440081172,3.2078,2506.8,2506.5,0.79804]
[1740440081376,3.2078,2506.8,2506.2,1.99538]
[1740440081668,5.46909073,2506.7,2506.1,3.2078]
[1740440081875,3.2078,2506.8,2506.1,5.20327]
[1740440082168,3.2078,2506.8,2506.1,1.99547]
[1740440082364,5.46909073,2506.7,2506.2,40.8]
[1740440082566,3.2078,2506.5,2506.2,40.8]
[1740440082771,3.2078,2506.5,2506.4,0.7981]
[1740440082970,3.2078,2506.5,2506.3,0.79811]
[1740440083170,8.67689073,2506.5,2506.2,0.79813]
[1740440083365,5.46909073,2506.4,2506.1,0.79818]
[1740440083569,3.2078,2506.2,2506.1,0.79818]
[1740440083769,5.46909073,2506.4,2505.9,22.108]
[1740440083964,8.67689073,2506.2,2506.0,0.79822]
[1740440084170,5.46909073,2506.3,2506.1,40.8]
[1740440084365,3.2078,2506.2,2505.9,0.79824]
[1740440084576,3.2078,2506.2,2505.2,1.99619]
[1740440084769,3.2078,2506.1,2505.3,42.79607]
[1740440084968,3.2078,2506.1,2506.0,0.79822]
[1740440085477,3.2078,2506.1,2506.0,6.79822]
[1740440085671,85.07377174,2506.4,2506.3,0.79813]
[1740440085872,3.2078,2506.6,2506.5,0.79806]
[1740440086179,3.2078,2507.0,2506.6,0.79802]
[1740440086376,3.2078,2507.0,2506.1,1.99549]
[1740440086377,3.2078,2506.7,2506.1,3.2078]
[1740440086574,3.2078,2506.7,2506.5,0.79804]
[1740440086769,3.2078,2506.7,2506.1,3.2078]
[1740440086973,3.2078,2506.4,2505.4,3.2078]
[1740440087167,8.67689073,2506.4,2506.1,0.00598432]
[1740440087482,0.79826,2505.9,2505.2,5.493507]
[1740440087771,5.46909073,2505.8,2505.2,0.454507]
[1740440087974,3.2078,2505.7,2504.8,17.8130807]
[1740440088174,5.46909073,2505.6,2504.8,17.8130807]
[1740440088372,3.2078,2505.6,2504.8,18.27379954]
[1740440088573,0.79843,2505.4,2504.8,18.27379954]
[1740440088772,3.2078,2505.2,2504.8,18.27379954]
[1740440090071,3.2078,2505.2,2504.8,21.48159954]
[1740440090274,3.2078,2505.2,2504.8,18.27379954]
[1740440091069,0.00598432,2505.3,2504.9,3.2078]
[1740440091269,3.2078,2505.2,2504.8,17.8883423]
[1740440091467,3.2078,2504.9,2504.8,17.8883423]
[1740440091775,3.2078,2505.2,2504.8,17.8883423]
[1740440092175,3.2078,2504.9,2504.8,17.8883423]
[1740440092472,0.8020626,2504.9,2504.8,17.8883423]
[1740440092673,0.0034926,2504.9,2504.8,17.8883423]
[1740440092874,0.79856,2505.0,2504.8,17.8883423]
[1740440093275,0.79857,2504.9,2504.8,17.8883423]
[1740440093476,0.79857,2504.9,2504.8,17.42762346]
[1740440093868,0.00598432,2505.1,2504.8,64.22762346]
[1740440094074,9.51015031,2505.2,2505.0,3.2078]
[1740440094277,9.51015031,2505.2,2504.8,64.22762346]
[1740440094278,0.79857,2504.9,2504.8,58.22762346]
[1740440094979,4.00637,2504.9,2504.8,58.22762346]